bitfinex-derivatives/quotes_SOLF0:USTF0_20250905
["timestamp","ask_amount","ask_price","bid_price","bid_amount"]
[1757086757857,7.36,204.12,204.06,4.34140074]
[1757086758065,4.918,204.11,204.05,4.18]
[1757086758264,8.04,204.1,204.06,4.34472042]
[1757086758465,8.04,204.1,204.05,4.18]
[1757086758665,8.04,204.1,204.06,4.34524938]
[1757086758868,8.04,204.1,204.05,4.18]
[1757086759059,8.04,204.1,204.06,4.34489037]
[1757086759262,8.04,204.1,204.02,4.19]
[1757086759558,4.918,204.15,204.04,4.19]
[1757086759762,4.918,204.15,204.05,4.34453038]
[1757086760066,4.918,204.15,204.06,4.34453038]
[1757086760367,8.04,204.16,204.08,4.19]
[1757086760561,8.04,204.16,204.09,4.34453038]
[1757086760864,8.04,204.16,204.08,4.19]
[1757086761065,8.04,204.16,204.09,4.34475823]
[1757086761365,4.918,204.15,204.1,4.34353309]
[1757086761665,4.918,204.15,204.08,4.19]
[1757086761856,4.918,204.15,204.09,4.34397035]
[1757086762060,4.918,204.15,204.1,8.53397035]
[1757086762256,4.918,204.14,204.1,4.19]
[1757086764268,4.918,204.14,204.04,4.17]
[1757086764468,4.918,204.14,204.05,4.35934709]
[1757086764667,4.918,204.14,204.06,4.35934709]
[1757086764868,4.918,204.14,204.07,4.35934709]
[1757086765169,8.04,204.13,204.08,4.35934709]
[1757086765462,8.04,204.13,204.04,4.17]
[1757086765767,8.04,204.13,204.05,4.36358372]
[1757086766069,12.958,204.11,204.06,4.36358372]
[1757086766267,4.918,204.07,204.03,4.09330838]
[1757086766464,4.918,204.07,204.04,4.36740303]
[1757086766767,8.04,204.06,204.05,4.36740303]
[1757086768468,8.04,204.06,203.96,4.17]
[1757086768768,8.04,204.06,203.97,4.36440124]
[1757086768970,12.958,204.06,203.98,4.36440124]
[1757086769167,12.958,204.06,203.99,4.36440124]
[1757086769468,12.958,204.06,204.0,4.36440124]
[1757086769664,12.958,204.06,204.01,4.36440124]
[1757086769860,12.958,204.06,203.94,4.09330838]
[1757086770071,4.918,204.05,203.95,4.37018745]
[1757086770265,8.04,204.04,203.96,4.37018745]
[1757086770470,8.04,204.04,203.97,4.37018745]
[1757086770671,8.04,204.04,203.98,4.37018745]
[1757086770873,8.04,204.04,203.99,8.54018745]
[1757086771171,8.04,204.09,204.0,4.37018745]
[1757086771371,8.04,204.09,204.01,4.37018745]
[1757086771571,8.04,204.09,204.02,4.37018745]
[1757086771772,8.04,204.09,203.97,4.17]
[1757086771972,8.04,204.09,203.98,4.36338581]
[1757086772171,4.918,204.08,203.99,4.36338581]
[1757086772371,4.918,204.07,204.0,4.36338581]
[1757086772665,8.74527959,204.1,204.01,4.36338581]
[1757086772666,8.04,204.05,204.01,4.36338581]
[1757086772872,8.04,204.05,203.97,4.17]
[1757086773071,8.04,204.05,203.98,4.36233013]
[1757086773375,8.04,204.05,203.99,4.36233013]
[1757086773682,8.04,204.04,204.0,4.36233013]
[1757086773868,4.918,204.05,204.01,4.36299694]
[1757086774067,8.04,204.04,203.95,4.17]
[1757086774269,8.04,204.04,203.96,4.36373363]
[1757086774468,8.04,204.04,203.97,4.36373363]
[1757086774672,8.74527959,204.12,203.98,8.53373363]
[1757086774868,8.04,204.11,203.99,4.36373363]
[1757086775175,8.04,204.11,204.0,4.36373363]
[1757086775371,8.04,204.11,204.01,4.36373363]
[1757086775672,4.918,204.09,204.02,4.36373363]
[1757086775873,12.958,204.08,203.94,8.26330838]
[1757086776175,12.958,204.08,203.95,4.36396799]
[1757086776376,12.958,204.08,203.96,4.36396799]
[1757086776571,12.958,204.08,203.97,4.36396799]
[1757086776771,12.958,204.08,203.98,4.36396799]
[1757086777074,12.958,204.08,203.94,4.17]
[1757086777277,12.958,204.08,203.95,4.36350457]
[1757086777470,12.958,204.08,203.96,4.36350457]
[1757086777671,12.958,204.08,203.97,4.36350457]
[1757086777871,12.958,204.08,203.98,4.36350457]
[1757086778169,12.958,204.08,203.99,4.36350457]
[1757086778375,12.958,204.08,203.97,4.17]
[1757086778677,12.958,204.08,203.98,4.36688456]
[1757086778878,12.958,204.08,203.99,4.36688456]
[1757086779177,8.04,204.08,204.0,4.36580231]
[1757086779474,8.04,204.08,204.01,4.36580231]
[1757086779675,8.04,204.08,203.99,4.17]
[1757086779879,8.04,204.08,204.0,4.3632505]
[1757086780076,12.958,204.06,203.92,4.17]
[1757086780377,12.958,204.06,203.94,4.17]
[1757086780577,12.958,204.06,203.95,4.36446154]
[1757086780777,12.958,204.06,203.96,4.36446154]
[1757086781077,12.958,204.06,203.97,4.36446154]
[1757086781281,12.958,204.06,203.98,4.36446154]
[1757086781471,12.958,204.06,203.99,4.36792319]
[1757086781673,12.958,204.06,203.94,4.17]
[1757086781875,12.958,204.06,203.96,4.17]
[1757086782180,8.04,204.06,203.97,4.36789557]
[1757086782377,4.918,204.05,203.98,4.36789557]
[1757086782579,4.918,204.05,203.99,4.36789557]
[1757086782877,4.918,204.06,204.0,4.36789557]
[1757086783082,4.918,204.06,203.98,4.17]
[1757086783276,4.918,204.06,203.99,4.36713512]
[1757086783475,4.918,204.06,204.0,4.36713512]
[1757086783673,4.918,204.1,203.98,4.17]
[1757086783871,4.918,204.1,204.01,4.17]
[1757086784677,4.918,204.1,204.02,4.36816269]
[1757086784879,8.04,204.11,204.04,4.17]
[1757086785081,8.04,204.11,204.05,4.36478598]
[1757086785380,8.04,204.11,204.04,4.17]
[1757086785577,8.04,204.11,204.05,4.3648673]
[1757086785782,8.04,204.11,204.04,4.17]
[1757086785977,8.04,204.11,204.05,4.36466321]
[1757086786283,8.04,204.11,204.04,4.17]
[1757086786482,8.04,204.11,204.05,4.36533295]
[1757086786684,8.04,204.11,204.04,4.17]
[1757086786878,8.04,204.11,204.05,4.36661241]
[1757086787087,8.04,204.11,203.99,3.36268166]
[1757086787383,8.04,204.09,204.0,4.36612478]
[1757086787584,8.04,204.09,204.01,4.36612478]
[1757086787784,8.04,204.09,204.02,4.36612478]
[1757086787981,8.04,204.09,204.03,4.36612478]
[1757086788180,8.04,204.09,203.99,3.36268166]
[1757086788381,8.04,204.09,204.0,4.3669898]
[1757086788579,8.04,204.09,204.01,8.5569898]
[1757086788775,8.04,204.09,204.02,4.3669898]
[1757086788984,8.04,204.09,204.03,4.3669898]
[1757086789286,3.36268166,204.1,204.04,4.3669898]
[1757086789478,7.53,204.09,204.05,4.36225436]
[1757086789684,7.53,204.09,204.01,4.19]
[1757086789878,7.53,204.09,204.02,4.3626031]
[1757086790080,7.53,204.09,204.03,4.3626031]
[1757086790380,7.53,204.1,204.04,4.3626031]
[1757086790579,7.53,204.1,204.05,4.3626031]
[1757086790779,7.53,204.1,204.06,4.3626031]
[1757086790985,7.53,204.1,204.05,4.19]
[1757086791184,10.89268166,204.15,204.06,4.36125236]
[1757086791388,10.89268166,204.15,204.05,4.19]
[1757086791584,4.918,204.14,204.06,4.36119328]
[1757086791784,7.53,204.13,204.05,4.19]
[1757086791983,7.53,204.13,204.06,4.36242804]
[1757086792282,7.53,204.13,204.05,4.19]
[1757086792483,7.53,204.13,204.06,4.36315514]
[1757086792684,7.53,204.13,204.05,4.19]
[1757086792885,7.53,204.13,204.06,4.36224506]
[1757086793083,7.53,204.13,204.05,4.19]
[1757086793284,12.448,204.13,204.06,4.36244667]
[1757086793584,3.36268166,204.09,203.97,4.19]
[1757086793884,3.36268166,204.06,203.98,4.36473448]
[1757086794085,3.36268166,204.06,203.97,8.28330838]
[1757086794676,7.53,204.05,203.97,8.28330838]
[1757086795084,4.918,204.04,203.97,8.28330838]
[1757086797688,4.918,204.06,203.97,4.09330838]
[1757086798091,4.918,204.06,203.97,8.28330838]
[1757086798388,4.918,204.04,203.97,8.28330838]
[1757086799090,4.918,204.04,203.97,4.19]
[1757086800785,12.448,204.05,203.97,4.19]
[1757086801492,7.53,204.05,203.97,4.19]
[1757086805092,4.918,204.08,203.99,4.19]
[1757086805294,7.53,204.09,203.99,4.19]
[1757086805495,7.53,204.14,204.01,5.3848711]
[1757086805686,7.53,204.14,204.02,4.19]
[1757086806093,12.448,204.14,204.02,4.19]
[1757086810696,4.918,204.1,204.02,4.19]
[1757086810897,12.448,204.09,203.98,8.28330838]
[1757086813196,12.448,204.09,203.98,4.19]
[1757086814390,12.448,204.09,203.95,4.09330838]
[1757086814595,4.918,204.06,203.95,4.09330838]
[1757086814795,4.918,204.04,203.95,4.09330838]
[1757086815201,7.53,204.05,203.95,4.09330838]
[1757086815396,7.53,204.05,203.96,4.19]
[1757086815795,7.53,204.05,203.95,4.09330838]
[1757086817397,2.15396239,204.02,203.96,2.15396239]
[1757086817600,2.15396239,204.02,203.92,4.19]
[1757086817800,2.15396239,204.02,203.95,2.15396239]
[1757086818603,9.78396239,204.02,203.94,2.15396239]
[1757086818900,7.63,204.02,203.94,2.15396239]
[1757086819101,2.15396239,204.01,203.94,2.15396239]
[1757086820404,2.15396239,204.01,203.92,4.19]
[1757086820703,2.15396239,204.01,203.94,2.15396239]
[1757086821301,2.15396239,203.97,203.92,4.19]
[1757086821500,7.63,203.96,203.92,4.19]
[1757086821704,2.15396239,203.97,203.92,4.18]
[1757086822001,7.63,203.99,203.92,4.18]
[1757086822202,2.15396239,203.98,203.92,4.18]
[1757086823106,7.63,203.99,203.92,4.18]
[1757086823300,2.15396239,203.98,203.92,4.18]
[1757086824298,7.63,203.98,203.93,8.55858745]
[1757086824606,9.78396239,204.03,203.95,2.15396239]
[1757086824798,9.78396239,204.03,203.96,4.37858745]
[1757086825093,9.78396239,204.03,203.97,4.37858745]
[1757086825404,7.63,204.02,203.98,4.37858745]
[1757086825606,2.15396239,204.04,203.99,4.37858745]
[1757086825795,7.07196239,204.06,204.0,8.55858745]
[1757086825999,2.15396239,204.06,204.01,4.37858745]
[1757086826199,9.78396239,204.06,204.02,4.37516351]
[1757086826495,7.63,204.06,204.03,4.37459773]
[1757086826694,7.63,204.06,204.0,4.18]
[1757086826901,2.15396239,204.08,204.02,4.18]
[1757086827201,5.4272642,204.1,204.03,4.37482419]
[1757086827403,5.4272642,204.1,204.07,2.15396239]
[1757086827604,2.15396239,204.13,204.06,4.18]
[1757086827804,2.15396239,204.13,204.07,4.37316727]
[1757086828102,4.918,204.1,204.05,2.15396239]
[1757086828302,9.78396239,204.09,204.06,4.37522806]
[1757086828506,7.63,204.08,204.03,2.15396239]
[1757086828706,7.63,204.08,204.04,4.37383849]
[1757086829008,7.63,204.08,204.05,4.37383849]
[1757086829205,7.63,204.08,204.06,4.37383849]
[1757086829409,7.63,204.08,204.07,4.37383849]
[1757086829606,7.63,204.08,203.94,4.18]
[1757086829905,2.15396239,204.05,203.98,2.15396239]
[1757086830106,2.15396239,204.05,203.99,4.37398991]
[1757086830309,2.15396239,204.05,204.0,8.55398991]
[1757086830607,2.15396239,204.05,204.01,4.37398991]
[1757086830808,2.15396239,204.05,204.02,4.37398991]
[1757086831008,2.15396239,204.05,204.03,4.37398991]
[1757086831308,9.78396239,204.05,204.04,4.37398991]
[1757086831505,9.78396239,204.05,203.96,6.33396239]
[1757086831805,2.15396239,204.02,203.97,4.37767146]
[1757086832005,2.15396239,204.02,203.98,4.37767146]
[1757086832208,2.15396239,204.02,203.99,4.37767146]
[1757086832411,2.15396239,204.02,204.0,4.37767146]
[1757086832606,2.15396239,204.02,204.01,4.37767146]
[1757086833907,7.63,204.05,204.01,4.37767146]
[1757086834106,7.63,204.09,204.02,8.55767146]
[1757086834313,2.15396239,204.07,204.03,8.55767146]
[1757086834507,2.15396239,204.07,204.04,4.37767146]
[1757086834811,2.15396239,204.07,204.05,4.37767146]
[1757086835110,2.15396239,204.07,204.06,4.37767146]
[1757086835511,2.15396239,204.07,204.03,4.18]
[1757086835808,2.15396239,204.07,204.04,4.37516114]
[1757086836011,2.15396239,204.05,203.99,4.18]
[1757086836209,9.78396239,204.05,204.0,8.5555352]
[1757086836409,9.78396239,204.05,204.01,4.3755352]
[1757086836603,9.78396239,204.05,204.02,4.3755352]
[1757086836807,9.78396239,204.05,204.03,4.3755352]
[1757086837110,9.78396239,204.05,203.98,4.18]
[1757086837308,9.78396239,204.05,203.99,4.38001198]
[1757086837610,2.15396239,204.05,204.01,4.18]
[1757086837810,2.15396239,204.05,204.02,4.38001198]
[1757086838009,2.15396239,204.05,204.03,4.38001198]
[1757086838210,2.15396239,204.05,204.04,4.38001198]
[1757086838508,9.78396239,204.05,204.04,4.38001198]
[1757086839309,9.78396239,204.05,203.97,6.33396239]
[1757086839509,2.15396239,204.05,203.98,4.38287661]
[1757086839710,2.15396239,204.05,203.99,4.38287661]
[1757086839912,2.15396239,204.05,204.0,8.56287661]
[1757086840109,2.15396239,204.05,204.01,4.38287661]
[1757086840311,2.15396239,204.05,204.02,4.38287661]
[1757086840611,2.15396239,204.05,204.03,4.38287661]
[1757086840912,2.15396239,204.05,204.04,4.38287661]
[1757086841607,9.78396239,204.05,204.04,4.38287661]
[1757086841914,9.78396239,204.05,204.0,4.18]
[1757086842107,9.78396239,204.05,204.01,4.38190448]
[1757086842313,2.15396239,204.03,204.02,4.38190448]
[1757086843513,2.15396239,204.04,204.02,4.38190448]
[1757086843716,2.15396239,204.04,204.03,4.38190448]
[1757086844217,2.15396239,204.06,204.03,8.56190448]
[1757086844408,2.15396239,204.05,203.99,2.15396239]
[1757086844604,2.15396239,204.05,204.01,4.18]
[1757086844813,2.15396239,204.05,204.02,8.5605211]
[1757086845012,2.15396239,204.05,204.03,4.3805211]
[1757086845212,2.15396239,204.05,204.02,4.18]
[1757086845414,5.4272642,204.13,204.04,4.18]
[1757086845618,2.15396239,204.09,204.06,4.18]
[1757086845923,2.15396239,204.09,204.07,4.38046623]
[1757086846115,2.15396239,204.09,204.08,4.38046623]
[1757086848917,2.15396239,204.11,204.08,4.38046623]
[1757086849125,2.15396239,204.11,204.04,4.18]
[1757086849317,2.15396239,204.11,204.05,6.53144581]
[1757086849620,5.4272642,204.13,204.07,4.18]
[1757086849822,2.15396239,204.12,204.08,8.55748342]
[1757086850022,2.15396239,204.12,204.09,4.37748342]
[1757086850224,2.15396239,204.12,204.08,4.18]
[1757086850423,9.58396239,204.12,204.09,4.3774774]
[1757086850622,2.15396239,204.12,204.05,6.33396239]
[1757086850823,2.15396239,204.12,204.06,4.37721753]
[1757086851123,2.15396239,204.1,204.07,4.37721753]
[1757086851323,2.15396239,204.08,204.05,4.18]
[1757086851621,2.15396239,204.1,204.06,4.37839694]
[1757086851823,2.15396239,204.1,204.07,4.37839694]
[1757086852022,9.58396239,204.1,204.08,4.37839694]
[1757086852218,7.43,204.1,204.06,4.18]
[1757086852426,9.58396239,204.1,204.07,4.37857927]
[1757086852620,9.58396239,204.1,204.08,4.37857927]
[1757086852819,2.15396239,204.1,204.03,2.15396239]
[1757086853017,2.15396239,204.1,204.04,8.55686347]
[1757086853217,2.15396239,204.12,204.05,6.53082586]
[1757086853418,2.15396239,204.12,204.06,4.37686347]
[1757086853717,9.58396239,204.12,204.07,4.37686347]
[1757086853919,9.58396239,204.12,204.08,4.37686347]
[1757086854214,9.58396239,204.12,204.09,4.37686347]
[1757086854418,7.43,204.12,204.05,6.33396239]
[1757086854619,2.15396239,204.11,204.06,4.38716362]
[1757086854819,2.15396239,204.11,204.07,4.38716362]
[1757086855023,2.15396239,204.11,204.08,8.56716362]
[1757086855324,2.15396239,204.11,204.09,4.38716362]
[1757086855524,2.15396239,204.11,204.05,4.18]
[1757086855721,9.58396239,204.11,204.06,8.5689549]
[1757086855921,9.58396239,204.11,204.07,8.5689549]
[1757086856122,7.43,204.1,204.08,4.3889549]
[1757086856424,2.15396239,204.11,204.04,6.33396239]
[1757086856625,2.15396239,204.11,204.05,4.38790178]
[1757086856827,9.58396239,204.11,204.06,8.56790178]
[1757086857120,9.58396239,204.11,204.07,4.38790178]
[1757086857317,7.43,204.11,204.08,4.38790178]
[1757086857522,14.50196239,204.12,204.05,4.18]
[1757086857723,12.348,204.12,204.06,4.38709747]
[1757086857925,14.50196239,204.12,204.08,4.18]
[1757086858324,4.918,204.16,204.07,4.18]
[1757086858522,7.07196239,204.15,204.08,6.53978357]
[1757086858724,7.07196239,204.15,204.09,4.38582118]
[1757086858918,4.918,204.15,204.1,4.38582118]
[1757086859118,4.918,204.15,204.09,4.18]
[1757086859316,4.918,204.15,204.11,4.18]
[1757086859725,12.348,204.15,204.11,4.18]
[1757086859926,14.50196239,204.15,204.11,4.18]
[1757086860427,2.15396239,204.13,204.07,4.18]
[1757086860627,9.58396239,204.13,204.08,4.38196652]
[1757086860822,9.58396239,204.13,204.09,4.38196652]
[1757086861022,9.58396239,204.13,204.07,4.18]
[1757086861223,9.58396239,204.13,204.08,8.56330988]
[1757086861525,9.58396239,204.13,204.09,4.38330988]
[1757086861726,9.58396239,204.13,204.08,4.18]
[1757086861925,9.58396239,204.13,204.09,4.38486113]
[1757086862126,9.58396239,204.13,204.08,4.18]
[1757086862127,2.15396239,204.11,204.02,28.66]
[1757086862328,2.15396239,204.11,204.04,2.15396239]
[1757086862528,2.15396239,204.11,204.05,8.56406523]
[1757086862730,2.15396239,204.11,204.07,4.18]
[1757086862929,2.15396239,204.11,204.08,4.38406523]
[1757086863227,2.15396239,204.11,204.09,4.38406523]
[1757086863427,7.43,204.12,204.07,4.18]
[1757086863628,7.43,204.12,204.08,4.38352152]
[1757086863927,7.43,204.12,204.09,4.38352152]
[1757086864228,7.43,204.12,204.07,4.18]
[1757086864424,7.43,204.12,204.08,4.38452026]
[1757086864626,7.43,204.12,204.09,4.38452026]
[1757086864825,7.43,204.12,204.07,4.18]
[1757086865027,7.43,204.12,204.08,4.38567848]
[1757086865227,7.43,204.12,204.09,4.38567848]
[1757086865433,7.43,204.12,204.07,4.18]
[1757086865634,7.43,204.12,204.08,4.38531705]
[1757086865831,7.43,204.12,204.07,4.18]
[1757086865832,7.43,204.12,204.09,4.38531705]
[1757086866032,7.43,204.12,204.07,4.18]
[1757086866233,7.43,204.12,204.08,4.3832398]
[1757086866431,7.43,204.12,204.09,4.3832398]
[1757086866634,7.43,204.12,204.07,4.18]
[1757086866829,7.43,204.12,204.08,4.38422191]
[1757086867031,7.43,204.12,204.09,4.38422191]
[1757086867234,7.43,204.12,204.07,4.18]
[1757086867434,7.43,204.12,204.08,4.38612636]
[1757086867635,7.43,204.12,204.09,4.38612636]
[1757086867830,7.43,204.12,204.07,4.18]
[1757086868031,7.43,204.12,204.08,4.38562497]
[1757086868234,12.348,204.12,204.09,4.38562497]
[1757086868435,12.348,204.12,204.08,4.18]
[1757086868625,7.43,204.12,204.09,4.38799525]
[1757086868830,7.43,204.12,204.1,4.38799525]
[1757086869032,7.43,204.12,204.06,4.18]
[1757086869228,12.348,204.13,204.07,4.38713418]
[1757086869434,4.918,204.13,204.08,4.38713418]
[1757086869739,7.43,204.12,204.09,4.38713418]
[1757086869937,7.43,204.12,204.05,4.18]
[1757086869938,4.918,204.12,204.1,4.38713418]
[1757086870139,7.43,204.11,204.05,4.18]
[1757086870340,7.43,204.11,204.07,4.18]
[1757086870545,7.43,204.11,204.08,4.38985628]
[1757086870735,7.43,204.11,204.09,4.38985628]
[1757086870937,7.43,204.11,204.1,4.38985628]
[1757086872544,12.348,204.11,204.1,4.38985628]
[1757086873751,12.348,204.11,204.03,4.18]
[1757086874048,12.348,204.11,204.05,4.18]
[1757086874236,12.348,204.11,204.07,4.18]
[1757086874439,4.918,204.15,204.08,4.39488564]
[1757086874746,7.43,204.12,204.09,4.39488564]
[1757086874948,4.918,204.13,204.1,4.39488564]
[1757086875245,12.348,204.13,204.07,4.18]
[1757086875447,7.43,204.12,204.08,4.39459353]
[1757086875641,4.918,204.15,204.09,4.39459353]
[1757086875840,4.918,204.13,204.1,4.39459353]
[1757086876044,4.918,204.11,204.03,4.18]
[1757086876243,4.918,204.11,204.04,4.39581893]
[1757086876447,4.918,204.11,204.05,4.39581893]
[1757086876648,4.918,204.11,204.06,4.39581893]
[1757086876845,7.43,204.1,204.07,4.39581893]
[1757086877046,4.918,204.11,204.08,4.39581893]
[1757086877247,7.43,204.1,204.03,4.18]
[1757086877450,7.43,204.1,204.04,4.39488815]
[1757086877647,7.43,204.1,204.06,4.18]
[1757086877848,7.43,204.1,204.07,4.39488815]
[1757086878149,7.43,204.1,204.08,4.39488815]
[1757086878350,7.62,204.1,204.06,4.18]
[1757086878549,7.62,204.1,204.07,4.39653324]
[1757086878750,4.918,204.11,204.08,4.39653324]
[1757086878949,7.62,204.1,204.03,4.18]
[1757086879151,7.62,204.1,204.04,4.39649084]
[1757086879447,3.36263214,204.09,204.05,4.39649084]
[1757086879652,7.62,204.07,204.06,4.39649084]
[1757086879851,10.98263214,204.07,204.01,4.09330838]
[1757086880050,7.62,204.05,204.02,4.39814627]
[1757086880351,7.62,204.05,204.03,4.39814627]
[1757086880541,7.62,204.05,204.04,4.39814627]
[1757086881949,12.538,204.05,204.04,4.39814627]
[1757086882144,4.918,204.06,204.01,4.09330838]
[1757086882341,7.62,204.03,204.02,4.40085109]
[1757086882946,7.62,204.06,204.02,4.40085109]
[1757086883151,12.538,204.05,204.03,4.40085109]
[1757086883353,12.538,204.05,204.04,4.40085109]
[1757086883650,3.36263214,204.11,204.04,4.40085109]
[1757086883851,7.62,204.1,204.05,4.40085109]
[1757086884048,12.538,204.08,204.06,4.40085109]
[1757086884254,12.538,204.08,204.01,4.18]
[1757086884442,12.538,204.08,204.02,4.40014731]
[1757086884643,7.62,204.12,204.04,4.18]
[1757086884846,7.62,204.12,204.05,4.40014731]
[1757086885052,7.62,204.12,204.06,4.40014731]
[1757086885255,7.62,204.13,204.07,4.40014731]
[1757086885455,7.62,204.13,204.08,4.40014731]
[1757086885649,7.62,204.13,204.04,4.18]
[1757086885850,7.62,204.13,204.05,4.39211539]
[1757086886052,7.62,204.13,204.06,4.39211539]
[1757086886253,7.62,204.13,204.07,4.39211539]
[1757086886453,7.62,204.13,204.08,8.57211539]
[1757086886648,7.62,204.13,204.09,8.57211539]
[1757086886957,3.36263214,204.16,204.1,8.57211539]
[1757086887152,13.0472642,204.17,204.1,4.18]
[1757086887351,13.0472642,204.17,204.11,4.39187141]
[1757086887550,7.62,204.16,204.12,4.39187141]
[1757086887851,7.62,204.16,204.07,7.54263214]
[1757086888058,3.36263214,204.15,204.08,4.39070488]
[1757086888350,7.62,204.11,204.09,4.39070488]
[1757086888551,7.62,204.11,204.03,4.18]
[1757086888751,7.62,204.11,204.04,4.39379957]
[1757086888956,7.62,204.11,204.05,4.39379957]
[1757086889252,7.62,204.11,204.06,4.39379957]
[1757086889455,3.36263214,204.13,204.07,4.39379957]
[1757086889655,7.62,204.12,204.08,4.39379957]
[1757086889850,7.62,204.12,204.09,4.39379957]
[1757086890054,7.62,204.12,204.1,4.39379957]
[1757086890352,7.62,204.12,204.08,4.18]
[1757086890553,7.62,204.12,204.09,4.39640685]
[1757086890753,7.62,204.12,204.1,4.39640685]
[1757086890950,12.538,204.12,204.08,4.18]
[1757086891148,3.36263214,204.13,204.09,4.39699724]
[1757086891348,7.62,204.11,204.1,4.39699724]
[1757086892657,12.538,204.11,204.1,4.39699724]
[1757086892857,7.62,204.11,204.1,4.39699724]
[1757086893252,3.36263214,204.13,204.1,4.39699724]
[1757086893458,10.98263214,204.13,204.06,4.18]
[1757086893655,4.918,204.12,204.07,4.40004095]
[1757086893860,7.62,204.14,204.08,4.40004095]
[1757086894061,10.98263214,204.15,204.09,4.40004095]
[1757086894261,7.62,204.14,204.1,4.40004095]
[1757086894461,7.62,204.14,204.06,4.18]
[1757086894662,7.62,204.14,204.07,4.40074929]
[1757086894862,4.918,204.13,204.08,4.40074929]
[1757086895061,12.538,204.13,204.09,4.40074929]
[1757086895261,12.538,204.13,204.1,4.40074929]
[1757086895458,12.538,204.13,204.06,4.18]
[1757086895658,12.538,204.13,204.07,4.40096097]
[1757086895859,12.538,204.12,204.08,4.40096097]
[1757086896063,12.538,204.12,204.09,4.40096097]
[1757086896253,4.918,204.14,204.1,4.40096097]
[1757086896558,4.918,204.12,204.06,4.18]
[1757086896861,7.62,204.11,204.07,4.40171208]
[1757086897061,7.62,204.11,204.08,4.40171208]
[1757086897261,7.62,204.11,204.09,4.40171208]
[1757086897465,4.918,204.12,204.1,4.40171208]
[1757086897664,4.918,204.12,204.11,4.40171208]
[1757086898059,12.538,204.12,204.11,4.40171208]
[1757086902069,12.538,204.12,204.06,4.18]
[1757086902268,12.538,204.11,204.07,8.58095819]
[1757086902468,12.538,204.11,204.08,4.40095819]
[1757086902664,12.538,204.11,204.09,4.40095819]
[1757086902966,12.538,204.11,204.1,4.40095819]
[1757086904369,12.538,204.11,204.03,4.18]
[1757086904568,12.538,204.11,204.04,4.40206241]
[1757086904768,12.538,204.11,204.05,4.40206241]
[1757086904963,12.538,204.1,204.06,4.40206241]
[1757086905163,8.28063214,204.1,204.07,4.40206241]
[1757086905366,7.62,204.09,204.08,4.40206241]
[1757086907364,8.28063214,204.1,204.08,4.40206241]
[1757086907570,8.28063214,204.1,204.02,4.09330838]
[1757086907571,7.62,204.17,204.09,4.39572811]
[1757086907771,4.905,204.15,204.1,4.39572811]
[1757086907972,7.62,204.14,204.06,4.18]
[1757086908272,12.525,204.14,204.07,4.39394179]
[1757086908565,12.525,204.14,204.08,4.39394179]
[1757086908764,12.325,204.13,204.09,4.39394179]
[1757086908961,12.325,204.13,204.1,4.39394179]
[1757086909267,12.325,204.13,204.06,4.18]
[1757086909464,7.42,204.13,204.07,4.39290726]
[1757086909672,4.905,204.15,204.08,8.57290726]
[1757086909971,4.905,204.14,204.09,4.39290726]
[1757086910271,7.42,204.13,204.1,4.39290726]
[1757086910569,7.42,204.13,204.04,4.18]
[1757086910767,7.42,204.13,204.05,4.39337791]
[1757086911071,7.42,204.13,204.06,8.57337791]
[1757086911269,7.42,204.13,204.07,4.39337791]
[1757086911471,7.42,204.13,204.09,4.18]
[1757086911768,7.42,204.13,204.1,4.39337791]
[1757086911970,7.42,204.13,204.09,4.18]